bitfinex/quotes_BTCUSD_20230118
["timestamp","ask_amount","ask_price","bid_price","bid_amount"]
[1674006874174,0.14732302,21210.0,21209.0,1.05482777]
[1674006874423,0.14732302,21210.0,21209.0,1.59958295]
[1674006875919,0.14732302,21210.0,21209.0,1.89958295]
[1674006876688,0.14732302,21210.0,21209.0,1.97498295]
[1674006876932,0.14732302,21210.0,21209.0,2.57498295]
[1674006877216,0.28897551,21219.0,21210.0,0.15]
[1674006877473,0.00393492,21219.0,21216.0,0.0757]
[1674006877719,0.00039174,21219.0,21217.0,0.17137461]
[1674006877964,0.00039174,21219.0,21217.0,0.13541185]
[1674006878218,0.00039174,21219.0,21216.0,0.0757]
[1674006878501,0.00039174,21219.0,21217.0,0.035732]
[1674006878805,0.00039174,21219.0,21216.0,0.0757]
[1674006879019,0.00086864,21219.0,21217.0,0.008]
[1674006879253,0.00039174,21219.0,21216.0,0.5196673]
[1674006879500,0.00039174,21219.0,21217.0,0.043733]
[1674006879760,0.00039174,21219.0,21216.0,0.5196673]
[1674006880085,0.00039174,21219.0,21217.0,0.043732]
[1674006880267,0.00039174,21219.0,21216.0,0.5196673]
[1674006880509,0.00039174,21219.0,21217.0,0.043732]
[1674006880799,0.00039174,21219.0,21216.0,0.5196673]
[1674006881026,0.00039174,21219.0,21217.0,0.03614293]
[1674006881303,0.00039174,21219.0,21217.0,0.00041093]
[1674006881544,0.00039174,21219.0,21218.0,0.03573]
[1674006882056,0.00039174,21219.0,21217.0,0.00841093]
[1674006882309,0.00039174,21219.0,21217.0,0.00041093]
[1674006882567,0.00039174,21219.0,21218.0,0.035729]
[1674006883336,0.00086864,21219.0,21216.0,0.5196673]
[1674006883596,0.19159459,21219.0,21218.0,0.008]
[1674006883869,0.00039174,21219.0,21218.0,0.008]
[1674006884354,0.00039174,21219.0,21216.0,0.5196673]
[1674006884355,0.00086864,21219.0,21216.0,0.5196673]
[1674006884640,0.00039174,21219.0,21216.0,0.5196673]
[1674006884861,0.00039174,21219.0,21217.0,0.035731]
[1674006885157,0.00039174,21219.0,21216.0,1.2310093]
[1674006885365,0.00039174,21219.0,21217.0,0.035732]
[1674006885617,0.00039174,21219.0,21218.0,0.008]
[1674006885880,0.00039174,21219.0,21216.0,1.2310093]
[1674006886452,0.00039174,21219.0,21217.0,0.035732]
[1674006886669,0.00039174,21219.0,21216.0,1.2390093]
[1674006886923,0.00039174,21219.0,21218.0,0.008]
[1674006887190,0.00039174,21219.0,21216.0,1.2309923]
[1674006887467,0.00039174,21219.0,21217.0,0.043731]
[1674006887779,0.00039174,21219.0,21217.0,0.008]
[1674006888457,0.00039174,21219.0,21216.0,1.2309953]
[1674006888726,0.47167274,21219.0,21217.0,0.035732]
[1674006889017,0.47167274,21219.0,21216.0,0.7596673]
[1674006889291,0.47167274,21219.0,21217.0,0.008]
[1674006889821,0.94294774,21219.0,21216.0,0.7596673]
[1674006890075,0.94294774,21219.0,21216.0,0.7676673]
[1674006890333,0.94294774,21219.0,21216.0,0.7596673]
[1674006890593,0.94294774,21219.0,21217.0,0.008]
[1674006891677,0.47167274,21219.0,21218.0,0.48934419]
[1674006891858,0.47167274,21219.0,21218.0,0.67607419]
[1674006891859,0.00039174,21219.0,21218.0,0.67607419]
[1674006892104,0.00039174,21219.0,21218.0,0.60047419]
[1674006893114,0.00039174,21219.0,21218.0,0.60447419]
[1674006893367,0.00039174,21219.0,21218.0,0.60047419]
[1674006893618,0.00039174,21219.0,21218.0,1.14277119]
[1674006894142,0.00039174,21219.0,21218.0,1.44277119]
[1674006894392,0.00039174,21219.0,21218.0,1.14277119]
[1674006894648,0.00039174,21219.0,21218.0,2.32500637]
[1674006895467,0.00039174,21219.0,21218.0,2.23200637]
[1674006895660,0.00039174,21219.0,21218.0,2.32400637]
[1674006896430,0.00039174,21219.0,21218.0,1.63506819]
[1674006898497,0.00039174,21219.0,21218.0,2.32346164]
[1674006898993,0.00039174,21219.0,21218.0,2.02346164]
[1674006899241,0.00039174,21219.0,21218.0,1.93506819]
[1674006899506,0.00039174,21219.0,21218.0,2.32385452]
[1674006900027,0.00039174,21219.0,21218.0,1.93506819]
[1674006900263,0.00039174,21219.0,21218.0,2.32377736]
[1674006900528,0.00039174,21219.0,21218.0,1.63506819]
[1674006901028,0.00039174,21219.0,21218.0,2.08506819]
[1674006903142,0.00039174,21219.0,21218.0,2.4735571]
[1674006903344,0.00039174,21219.0,21218.0,2.47352188]
[1674006904112,0.00039174,21219.0,21218.0,2.47377319]
[1674006904634,0.00039174,21219.0,21218.0,2.47395166]
[1674006906989,0.00039174,21219.0,21218.0,2.08506819]
[1674006907765,0.00039174,21219.0,21218.0,1.93506819]
[1674006908019,0.00039174,21219.0,21218.0,1.93590044]
[1674006908737,0.00039174,21219.0,21218.0,1.63590044]
[1674006908995,0.00039174,21219.0,21218.0,1.54390044]
[1674006909241,0.00039174,21219.0,21218.0,1.84390044]
[1674006909517,0.00039174,21219.0,21218.0,1.63690044]
[1674006910568,0.00039174,21219.0,21218.0,1.93690044]
[1674006911316,0.00039174,21219.0,21218.0,1.99390044]
[1674006911600,0.00039174,21219.0,21218.0,2.08590044]
[1674006912137,0.00033012,21219.0,21218.0,2.08590044]
[1674006912636,0.00033012,21219.0,21218.0,2.43168848]
[1674006912901,0.00033012,21219.0,21218.0,2.33535238]
[1674006913158,0.00033012,21219.0,21218.0,2.42735238]
[1674006914235,0.00033012,21219.0,21218.0,2.08160044]
[1674006915897,0.00033012,21219.0,21218.0,1.93160044]
[1674006916149,0.00033012,21219.0,21218.0,2.08160044]
[1674006916419,0.00033012,21219.0,21218.0,1.93160044]
[1674006916729,0.00033012,21219.0,21218.0,2.08160044]
[1674006916993,0.00033012,21219.0,21218.0,1.93160044]
[1674006918610,0.00033012,21219.0,21218.0,1.08407119]
[1674006918889,0.00033012,21219.0,21218.0,1.04834119]
[1674006919155,0.00033012,21219.0,21218.0,1.08407019]
[1674006919406,0.00033012,21219.0,21218.0,1.04917344]
[1674006919675,0.00033012,21219.0,21218.0,1.12487344]
[1674006919935,0.00033012,21219.0,21218.0,1.16060244]
[1674006920186,0.00080702,21219.0,21218.0,1.15317019]
[1674006920456,0.00080702,21219.0,21218.0,1.07830244]
[1674006920457,0.00033012,21219.0,21218.0,1.07830244]
[1674006920722,0.00033012,21219.0,21218.0,1.04257344]
[1674006920945,0.00033012,21219.0,21218.0,1.07830244]
[1674006921197,0.00033012,21219.0,21218.0,1.04257344]
[1674006921716,0.00033012,21219.0,21218.0,1.07830244]
[1674006922273,0.00033012,21219.0,21218.0,1.04257344]
[1674006922810,0.00033012,21219.0,21218.0,1.07830244]
[1674006923280,0.00033012,21219.0,21218.0,1.04257344]
[1674006923563,0.00033012,21219.0,21218.0,1.07830244]
[1674006924115,0.00033012,21219.0,21218.0,1.04257344]
[1674006924395,0.00033012,21219.0,21218.0,1.07830244]
[1674006924656,0.00033012,21219.0,21218.0,1.04174119]
[1674006926013,0.00033012,21219.0,21218.0,1.04162636]
[1674006926277,0.00033012,21219.0,21218.0,1.07735536]
[1674006927039,0.00033012,21219.0,21218.0,1.04162636]
[1674006927324,0.00033012,21219.0,21218.0,0.94962636]
[1674006927596,0.00880702,21219.0,21218.0,0.004]
[1674006927873,0.00080702,21219.0,21216.0,0.711325]
[1674006928154,0.19905607,21219.0,21218.0,0.007]
[1674006928402,0.00833012,21219.0,21218.0,0.007]
[1674006928929,0.00033012,21219.0,21216.0,1.56106348]
[1674006929189,0.00033012,21219.0,21216.0,1.09373048]
[1674006929463,0.00033012,21219.0,21218.0,0.36213789]
[1674006929733,0.00033012,21219.0,21218.0,1.34046089]
[1674006929998,0.00833012,21219.0,21218.0,1.72316089]
[1674006930282,0.00033012,21219.0,21218.0,1.71616089]
[1674006931265,0.00833012,21219.0,21218.0,1.72316089]
[1674006933130,0.00833012,21219.0,21218.0,1.44177399]
[1674006934400,0.00833012,21219.0,21218.0,1.74177399]
[1674006937371,0.00833012,21219.0,21218.0,1.44177399]
[1674006938351,0.00833012,21219.0,21218.0,1.74177399]
[1674006941707,0.00833012,21219.0,21218.0,1.89177399]
[1674006942043,0.00833012,21219.0,21218.0,2.00461977]
[1674006942273,0.00833012,21219.0,21218.0,1.74177399]
[1674006945365,0.00833012,21219.0,21218.0,1.36607399]
[1674006948011,0.00833012,21219.0,21218.0,0.0256131]
[1674006948012,0.00880702,21219.0,21218.0,0.0256131]
[1674006949601,0.48008202,21219.0,21218.0,0.0256131]
[1674006951160,0.66823148,21219.0,21218.0,0.0256131]
[1674006951450,0.66823148,21219.0,21218.0,0.02551162]
[1674006951451,1.6296548,21219.0,21218.0,0.02551162]
[1674006951705,1.46098148,21219.0,21218.0,0.02551162]
[1674006951959,0.87725702,21219.0,21218.0,0.02551162]
[1674006952230,0.55578202,21219.0,21218.0,0.02551162]
[1674006952751,0.08450702,21219.0,21218.0,0.02551162]
[1674006953290,0.00833012,21219.0,21218.0,0.02551162]
[1674006956488,0.47960512,21219.0,21218.0,0.02551162]
[1674006956740,0.00833012,21219.0,21218.0,0.02551162]
[1674006957103,0.00833012,21219.0,21218.0,0.02655455]
[1674006958363,0.00833012,21219.0,21218.0,0.06124062]
[1674006958881,0.00880702,21219.0,21218.0,0.02551162]
[1674006959163,0.00833012,21219.0,21218.0,0.02551162]
[1674006960497,0.00833012,21219.0,21218.0,1.00383462]
[1674006961290,0.00833012,21219.0,21218.0,1.30383462]
[1674006961561,0.00833012,21219.0,21218.0,1.00383462]
[1674006964201,0.00833012,21219.0,21218.0,1.00487755]
[1674006965537,0.00880702,21219.0,21218.0,0.53253762]
[1674006966082,0.63078202,21219.0,21218.0,0.02551162]
[1674006966330,0.95225702,21219.0,21218.0,0.02551162]
[1674006966609,0.63078202,21219.0,21218.0,0.02551162]
[1674006966912,0.95225702,21219.0,21218.0,0.02551162]
[1674006967171,1.10205702,21219.0,21218.0,0.02551162]
[1674006967438,0.95178012,21219.0,21218.0,0.02551162]
[1674006967691,0.00833012,21219.0,21218.0,0.02551162]
[1674006970537,0.00880702,21219.0,21218.0,0.02551162]
[1674006970763,0.00833012,21219.0,21218.0,0.02551162]
[1674006972257,0.00833012,21219.0,21218.0,0.02051162]
[1674006973018,0.00833012,21219.0,21218.0,0.49180862]
[1674006973295,0.00833012,21219.0,21218.0,0.99883462]
[1674006973527,0.00033012,21219.0,21218.0,1.2969361]
[1674006974046,0.08933012,21219.0,21218.0,1.2969361]
[1674006975111,0.00033012,21219.0,21218.0,0.9969361]
[1674006975366,0.08833012,21219.0,21218.0,1.2969361]
[1674006976731,0.08833012,21219.0,21218.0,1.91252994]
[1674006976988,0.08833012,21219.0,21218.0,2.94816646]
[1674006977273,0.08833012,21219.0,21218.0,2.081805]
[1674006977532,0.08833012,21219.0,21218.0,1.93180663]
[1674006978022,0.08833012,21219.0,21218.0,1.76253796]
[1674006978284,0.08833012,21219.0,21218.0,2.46839657]
[1674006978549,0.00033012,21219.0,21218.0,2.91068475]
[1674006978795,0.00833012,21219.0,21218.0,2.80885949]
[1674006979016,0.00833012,21219.0,21218.0,2.92168468]
[1674006979273,0.00833012,21219.0,21218.0,2.90762185]
[1674006979526,0.00833012,21219.0,21218.0,2.90759999]
[1674006979788,0.00833012,21219.0,21218.0,1.77350935]
[1674006980043,0.00833012,21219.0,21218.0,2.46542805]
[1674006980388,0.00833012,21219.0,21218.0,3.36465596]
[1674006980567,0.00833012,21219.0,21218.0,2.79486573]
[1674006980821,0.00833012,21219.0,21218.0,2.21574987]
[1674006981099,0.00833012,21219.0,21218.0,2.79451474]
[1674006981336,0.00033012,21219.0,21218.0,3.00854337]
[1674006981608,0.00833012,21219.0,21218.0,2.91795185]
[1674006981862,0.00033012,21219.0,21218.0,3.14239946]
[1674006982124,0.00833012,21219.0,21218.0,1.77661326]
[1674006982393,0.00833012,21219.0,21218.0,1.41900905]
[1674006982656,0.01633012,21219.0,21218.0,1.43000905]
[1674006982946,0.00033012,21219.0,21218.0,1.40800905]
[1674006983202,0.00033012,21219.0,21218.0,1.55800905]
[1674006983479,0.00033012,21219.0,21218.0,1.67081339]
[1674006983751,0.00033012,21219.0,21218.0,1.86900905]
[1674006983752,0.00833012,21219.0,21218.0,1.86900905]
[1674006984332,0.00833012,21219.0,21218.0,1.98181339]
[1674006984585,0.00033012,21219.0,21218.0,1.97081339]
[1674006984842,0.00833012,21219.0,21218.0,1.98181339]
[1674006985145,0.00833012,21219.0,21218.0,2.98258632]
[1674006985465,0.01633012,21219.0,21218.0,2.42374394]
[1674006985685,0.01633012,21219.0,21218.0,2.99342098]
[1674006985946,0.00033012,21219.0,21218.0,3.32716248]
[1674006986461,0.00833012,21219.0,21218.0,2.76860105]
[1674006986725,0.00833012,21219.0,21218.0,3.41380476]
[1674006986980,0.00833012,21219.0,21218.0,2.49940607]
[1674006987244,0.00833012,21219.0,21218.0,2.84442642]
[1674006987509,0.00033012,21219.0,21218.0,3.05787444]
[1674006987801,0.00833012,21219.0,21218.0,3.06887444]
[1674006988111,0.00784336,21221.0,21219.0,0.21262019]
[1674006988384,0.00784336,21221.0,21220.0,1.88868419]
[1674006988654,0.00784336,21222.0,21221.0,0.15]
[1674006988910,0.00784336,21222.0,21221.0,2.93900957]
[1674006989202,0.00784336,21222.0,21221.0,3.14552383]
[1674006989672,0.00835914,21223.0,21221.0,3.42722908]
[1674006989675,0.00838711,21226.0,21222.0,0.15]
[1674006989928,0.00838711,21226.0,21224.0,0.11252803]
[1674006990225,0.00838711,21226.0,21225.0,2.09557221]
[1674006990502,0.00838711,21226.0,21225.0,2.24557246]
[1674006990798,0.00838711,21226.0,21225.0,1.900228]
[1674006991060,0.00838711,21226.0,21225.0,1.449128]
[1674006991326,0.00838711,21226.0,21225.0,1.749128]
[1674006991592,0.00838711,21226.0,21225.0,1.888128]
[1674006991877,0.00838711,21226.0,21225.0,1.749128]
[1674006992163,0.00838711,21226.0,21225.0,1.888128]
[1674006992697,0.00838711,21226.0,21225.0,1.449128]
[1674006993246,0.00838711,21226.0,21225.0,0.977986]
[1674006993496,0.00838711,21226.0,21225.0,1.118986]
[1674006993762,0.00838711,21226.0,21225.0,0.977986]
[1674006994549,0.00838711,21226.0,21225.0,0.986986]
[1674006994839,0.00838711,21226.0,21225.0,1.286986]
[1674006995103,0.00838711,21226.0,21225.0,1.277986]
[1674006995369,0.00838711,21226.0,21225.0,1.6799958]
[1674006995627,0.00838711,21226.0,21225.0,2.167056]
[1674006996660,0.00838711,21226.0,21225.0,1.8956958]
[1674006996935,0.00838711,21226.0,21225.0,1.7556958]
[1674006997226,0.00838711,21226.0,21225.0,2.39649191]
[1674006997493,0.00838711,21226.0,21225.0,2.0446958]
[1674006998011,0.00995999,21227.0,21226.0,0.15]
[1674006998269,0.00995999,21227.0,21226.0,1.93509795]
[1674006998532,0.00995999,21227.0,21226.0,2.45704105]
[1674006998791,0.00995999,21227.0,21226.0,1.97079095]
[1674006999059,0.00995999,21227.0,21226.0,2.437116]
[1674006999324,0.00995999,21227.0,21226.0,2.47693437]
[1674006999854,0.00995999,21227.0,21226.0,2.01060932]
[1674007000143,0.00995999,21227.0,21226.0,2.54402339]
[1674007002025,0.00995999,21227.0,21226.0,2.46882339]
[1674007004140,0.00995999,21227.0,21226.0,2.01882339]
[1674007004402,0.00995999,21227.0,21226.0,1.55116544]
[1674007004943,0.00995999,21227.0,21226.0,1.51134707]
[1674007005208,0.00995999,21227.0,21226.0,1.37234707]
[1674007005732,0.00995999,21227.0,21226.0,1.81134707]
[1674007008877,0.00995999,21227.0,21226.0,1.95919093]
[1674007009148,0.00995999,21227.0,21226.0,2.41697588]
[1674007009680,0.00995999,21227.0,21226.0,2.03489093]
[1674007009931,0.00995999,21227.0,21226.0,2.45620513]
[1674007010191,0.00995999,21227.0,21226.0,2.69620513]
[1674007011762,0.00995999,21227.0,21226.0,2.55720513]
[1674007012071,0.00995999,21227.0,21226.0,2.27489093]
[1674007012335,0.00034606,21227.0,21226.0,2.72483231]
[1674007013147,0.00034606,21227.0,21226.0,2.57483231]
[1674007013416,0.00034606,21227.0,21226.0,2.12489093]
[1674007013675,0.00034606,21227.0,21226.0,2.2404093]
[1674007013944,0.00034606,21227.0,21226.0,2.35293733]
[1674007014212,0.00034606,21227.0,21226.0,2.2404093]
[1674007014503,0.00034606,21227.0,21226.0,2.0257093]
[1674007014771,0.0105519,21228.0,21227.0,0.15]
[1674007015025,0.0105519,21228.0,21227.0,1.8600903]
[1674007015293,0.0105519,21228.0,21227.0,2.33705709]
[1674007016103,0.0105519,21228.0,21227.0,2.0347793]
[1674007016368,0.0105519,21228.0,21227.0,2.52113493]
[1674007016891,0.0105519,21228.0,21227.0,2.37113493]
[1674007017165,0.0105519,21228.0,21227.0,1.93213493]
[1674007017644,0.0105519,21228.0,21227.0,2.07113493]
[1674007017645,0.0105519,21228.0,21227.0,1.93213493]
[1674007017905,0.0105519,21228.0,21227.0,2.07113493]
[1674007018158,0.0105519,21228.0,21227.0,1.60324063]
[1674007018677,0.0105519,21228.0,21227.0,1.46424063]
[1674007018937,0.0105519,21228.0,21227.0,1.60324063]
[1674007019190,0.0105519,21228.0,21227.0,1.46424063]
[1674007019445,0.0105519,21228.0,21227.0,1.76424063]
[1674007020737,0.0105519,21228.0,21227.0,1.90324063]
[1674007022059,0.0105519,21228.0,21227.0,1.60324063]
[1674007023064,0.0105519,21228.0,21227.0,1.46424063]
[1674007023823,0.0105519,21228.0,21227.0,1.76424063]
[1674007024114,0.0105519,21228.0,21227.0,1.89924063]
[1674007024399,0.0105519,21228.0,21227.0,1.76424063]
[1674007024659,0.0105519,21228.0,21227.0,1.89924063]
[1674007024923,0.0105519,21228.0,21227.0,1.76424063]
[1674007025239,0.0105519,21228.0,21227.0,1.89924063]
[1674007026021,0.0105519,21228.0,21227.0,1.76424063]
[1674007026302,0.0105519,21228.0,21227.0,1.89924063]
[1674007027952,0.0105519,21228.0,21227.0,3.10461027]
[1674007028223,0.0105519,21228.0,21227.0,3.10488087]
[1674007028485,0.0105519,21228.0,21227.0,3.21713829]
[1674007028747,0.0105519,21228.0,21227.0,3.43977803]
[1674007029043,0.0105519,21228.0,21227.0,3.15845796]
[1674007029365,0.0105519,21228.0,21227.0,3.44043116]
[1674007029609,0.0105519,21228.0,21227.0,3.53101621]
[1674007029854,0.0105519,21228.0,21227.0,3.66601621]
[1674007030381,0.0105519,21228.0,21227.0,3.27372191]
[1674007030649,0.0105519,21228.0,21227.0,2.83755597]
[1674007030900,0.0105519,21228.0,21227.0,2.85975864]
[1674007031413,0.0105519,21228.0,21227.0,3.08534369]
[1674007032163,0.0105519,21228.0,21227.0,2.85975864]
[1674007032650,0.0105519,21228.0,21227.0,3.08534369]
[1674007032898,0.0105519,21228.0,21227.0,2.85975864]
[1674007033156,0.0105519,21228.0,21227.0,3.47763799]
[1674007033432,0.0105519,21228.0,21227.0,3.44003116]
[1674007033693,0.00031832,21228.0,21227.0,3.44003116]
[1674007034216,0.00031832,21228.0,21227.0,2.63076366]
[1674007034434,0.00031832,21228.0,21227.0,2.76576366]
[1674007034928,0.00031832,21228.0,21227.0,3.04803286]
[1674007036716,0.00031832,21228.0,21227.0,1.54374177]
[1674007036989,0.00031832,21228.0,21227.0,1.43082509]
[1674007037723,0.21545832,21228.0,21227.0,1.43082509]
[1674007038266,0.00031832,21228.0,21227.0,1.43082509]
[1674007038500,0.00031832,21228.0,21227.0,1.73082509]
[1674007038737,0.00031832,21228.0,21227.0,1.76651409]
[1674007039249,0.00031832,21228.0,21227.0,1.87943077]
[1674007039750,0.00031832,21228.0,21227.0,1.74443077]
[1674007040005,0.00031832,21228.0,21227.0,1.87043077]
[1674007041789,0.00031832,21228.0,21227.0,2.96933324]
[1674007042083,0.00031832,21228.0,21227.0,3.08227389]
[1674007042272,0.00031832,21228.0,21227.0,2.87271429]
[1674007042781,0.00031832,21228.0,21227.0,2.85960026]
[1674007043041,0.00031832,21228.0,21227.0,2.98460026]
[1674007043294,0.00031832,21228.0,21227.0,2.05503534]
[1674007043540,0.00031832,21228.0,21227.0,1.93003534]
[1674007043803,0.00031832,21228.0,21227.0,2.98473896]
[1674007044072,0.00031832,21228.0,21227.0,2.85973896]
[1674007044337,0.00031832,21228.0,21227.0,2.87185299]
[1674007044614,0.00031832,21228.0,21227.0,2.74685299]
[1674007044894,0.00031832,21228.0,21227.0,2.87185299]
[1674007045149,0.00031832,21228.0,21227.0,2.7129484]
[1674007045417,0.00031832,21228.0,21227.0,2.05503225]
[1674007046223,0.00031832,21228.0,21227.0,1.88566108]
[1674007046477,0.00031832,21228.0,21227.0,2.86480642]
[1674007046992,0.00031832,21228.0,21227.0,2.92125896]
[1674007047771,0.00031832,21228.0,21227.0,3.09058239]
[1674007048040,0.00031832,21228.0,21227.0,3.20352816]
[1674007048312,0.00031832,21228.0,21227.0,3.59582246]
[1674007048796,0.00031832,21228.0,21227.0,3.36999875]
[1674007049295,0.00031832,21228.0,21227.0,3.24499875]
[1674007049579,0.00031832,21228.0,21227.0,2.96272955]
[1674007050068,0.00031832,21228.0,21227.0,3.08672955]
[1674007050583,0.00031832,21228.0,21227.0,3.24490871]
[1674007050844,0.00031832,21228.0,21227.0,2.85261441]
[1674007051106,0.00031832,21228.0,21227.0,2.49618972]
[1674007051362,0.00031832,21228.0,21227.0,2.66550717]
[1674007051616,0.00031832,21228.0,21227.0,2.55263357]
[1674007051871,0.00031832,21228.0,21227.0,1.62997652]
[1674007052658,0.00031832,21228.0,21227.0,1.76065907]
[1674007052921,0.00031832,21228.0,21227.0,1.92997652]
[1674007053207,0.00031832,21228.0,21227.0,2.05497652]
[1674007053504,0.00031832,21228.0,21227.0,2.95719285]
[1674007053819,0.00031832,21228.0,21227.0,3.08219285]
[1674007054095,0.00031832,21228.0,21227.0,2.96930009]
[1674007054353,1.166e-05,21228.0,21227.0,3.07941523]
[1674007054637,1.166e-05,21228.0,21227.0,3.8940358]
[1674007054906,1.166e-05,21228.0,21227.0,3.93385417]
[1674007055410,1.166e-05,21228.0,21227.0,3.80885417]
[1674007055667,1.166e-05,21228.0,21227.0,3.583355]
[1674007055936,1.166e-05,21228.0,21227.0,3.459355]
[1674007056190,1.166e-05,21228.0,21227.0,3.583355]
[1674007056966,1.166e-05,21228.0,21227.0,4.30299018]
[1674007057254,1.166e-05,21228.0,21227.0,3.583355]
[1674007058533,1.166e-05,21228.0,21227.0,3.96503962]
[1674007058786,1.166e-05,21228.0,21227.0,4.30292572]
[1674007059614,1.166e-05,21228.0,21227.0,3.583355]
[1674007059885,1.166e-05,21228.0,21227.0,4.29564997]
[1674007060143,1.166e-05,21228.0,21227.0,3.576155]
[1674007060674,1.166e-05,21228.0,21227.0,3.1838607]
[1674007061469,1.166e-05,21228.0,21227.0,3.576155]
[1674007062022,1.166e-05,21228.0,21227.0,3.206155]
[1674007062529,1.166e-05,21228.0,21227.0,3.4882085]
[1674007063098,1.166e-05,21228.0,21227.0,3.68335669]
[1674007063348,1.166e-05,21228.0,21227.0,4.06492251]
[1674007063602,1.166e-05,21228.0,21227.0,4.40280968]
[1674007063877,1.166e-05,21228.0,21227.0,4.06486726]
[1674007064138,1.166e-05,21228.0,21227.0,3.68335669]
[1674007064432,1.166e-05,21228.0,21227.0,4.40275273]
[1674007064949,1.166e-05,21228.0,21227.0,3.68335669]
[1674007066003,1.166e-05,21228.0,21227.0,3.64353832]
[1674007066264,1.166e-05,21228.0,21227.0,4.02480551]
[1674007066533,1.166e-05,21228.0,21227.0,4.36269161]
[1674007066799,1.166e-05,21228.0,21227.0,4.40250998]
[1674007067077,0.01045334,21229.0,21228.0,4.834e-05]
[1674007067347,0.01045334,21229.0,21228.0,3.44775969]
[1674007067611,0.01045334,21229.0,21228.0,4.68173094]
[1674007068494,0.01045334,21229.0,21228.0,4.67714441]
[1674007068738,0.01037003,21230.0,21229.0,0.15]
[1674007068992,0.01037003,21230.0,21229.0,3.74672177]
[1674007069263,0.01037003,21230.0,21229.0,4.12222014]
[1674007069881,0.01037003,21230.0,21229.0,4.24605416]
[1674007070098,0.00982339,21233.0,21229.0,4.24602311]
[1674007070324,0.00982339,21233.0,21232.0,0.35726762]
[1674007070541,0.00982339,21233.0,21232.0,4.36072434]
[1674007070762,0.00982339,21233.0,21232.0,4.62149111]
[1674007070984,0.00982339,21233.0,21232.0,5.00888187]
[1674007071207,0.00982339,21233.0,21232.0,5.22873438]
[1674007071434,0.00982339,21233.0,21232.0,5.18256963]
[1674007071658,0.00982339,21233.0,21232.0,4.94583074]
[1674007071871,0.00982339,21233.0,21232.0,5.06983074]
[1674007072336,0.00982339,21233.0,21232.0,4.59262905]
[1674007072551,0.00982339,21233.0,21232.0,4.53562878]
[1674007073059,0.00982339,21233.0,21232.0,4.27267455]
[1674007073292,0.00982339,21233.0,21232.0,4.04733999]
[1674007073515,0.00982339,21233.0,21232.0,4.5038028]
[1674007073736,0.00982339,21233.0,21232.0,4.44734431]
[1674007073960,0.00982339,21233.0,21232.0,4.27254809]
[1674007074196,0.00982339,21233.0,21232.0,3.9908815]
[1674007074428,0.00044002,21233.0,21232.0,3.9908815]
[1674007074656,0.00044002,21233.0,21232.0,4.61785349]
[1674007074845,0.00044002,21233.0,21232.0,3.74930869]
[1674007075149,0.00044002,21233.0,21232.0,3.86187124]
[1674007075373,0.00044002,21233.0,21232.0,4.38260062]
[1674007075616,0.00044002,21233.0,21232.0,4.1580455]
[1674007076298,0.00044002,21233.0,21232.0,4.52286539]
[1674007076514,0.00044002,21233.0,21232.0,4.2411988]
[1674007076759,0.01239513,21235.0,21233.0,0.50426743]
[1674007077009,0.01239513,21235.0,21234.0,2.90184485]
[1674007077227,0.01239513,21235.0,21234.0,2.96864027]
[1674007077481,0.01239513,21235.0,21234.0,2.33195399]
[1674007077696,0.01239513,21235.0,21234.0,2.219426]
[1674007078148,0.01239513,21235.0,21234.0,1.572484]
[1674007078380,0.01239513,21235.0,21234.0,1.448484]
[1674007078603,0.01239513,21235.0,21234.0,1.573484]
[1674007078823,0.01239513,21235.0,21234.0,1.537826]
[1674007079280,0.08789513,21235.0,21234.0,1.537826]
[1674007079749,0.08789513,21235.0,21234.0,1.412826]
[1674007080006,0.08789513,21235.0,21234.0,1.537826]
[1674007080244,0.08789513,21235.0,21234.0,1.102541]
[1674007080245,0.01239513,21235.0,21234.0,1.102541]
[1674007080471,0.01239513,21235.0,21234.0,0.977541]
[1674007080691,0.01239513,21235.0,21234.0,1.330541]
[1674007080909,0.01239513,21235.0,21234.0,1.277541]
[1674007081178,0.01239513,21235.0,21234.0,1.403541]
[1674007081365,0.01239513,21235.0,21234.0,1.277541]
[1674007081589,0.01239513,21235.0,21234.0,1.217541]
[1674007081812,0.01239513,21235.0,21234.0,1.642541]
[1674007082047,0.01239513,21235.0,21234.0,1.306884]
[1674007082262,0.08809513,21235.0,21234.0,1.306884]
[1674007083152,0.01239513,21235.0,21234.0,1.606884]
[1674007083370,0.01239513,21235.0,21234.0,1.642541]
[1674007084506,0.01239513,21235.0,21234.0,1.606884]
[1674007085104,0.01239513,21235.0,21234.0,1.306884]
[1674007085277,0.01239513,21235.0,21234.0,1.342541]
[1674007086199,0.01239513,21235.0,21234.0,1.642541]
[1674007089242,0.01239513,21235.0,21234.0,1.342541]
[1674007089484,0.01239513,21235.0,21234.0,1.306884]
[1674007090638,0.08809513,21235.0,21234.0,1.306884]
[1674007095999,0.08809513,21235.0,21234.0,1.606884]
[1674007096666,0.08309513,21235.0,21234.0,1.606884]
[1674007096877,0.08309513,21235.0,21234.0,1.306884]
[1674007096878,0.08357203,21235.0,21234.0,1.306884]
[1674007097107,0.08309513,21235.0,21234.0,1.306884]
[1674007099174,0.08309513,21235.0,21234.0,0.365]
[1674007099401,0.48027013,21235.0,21234.0,0.365]
[1674007100931,0.47527013,21235.0,21234.0,0.365]
[1674007102004,0.39957013,21235.0,21234.0,0.365]
[1674007104307,0.40951037,21235.0,21234.0,0.365]
[1674007104562,1.42695037,21235.0,21234.0,0.365]
[1674007104820,1.57695037,21235.0,21234.0,0.365]
[1674007105105,1.50135037,21235.0,21234.0,0.365]
[1674007105630,1.50135037,21235.0,21234.0,0.369]
[1674007105851,1.50135037,21235.0,21234.0,0.24]
[1674007106106,1.50135037,21235.0,21234.0,0.249]
[1674007107656,1.49141013,21235.0,21234.0,0.249]
[1674007107894,1.02049013,21235.0,21234.0,0.249]
[1674007108414,1.02049013,21235.0,21234.0,0.24]
[1674007108661,1.02049013,21235.0,21234.0,0.249]
[1674007108662,1.49141013,21235.0,21234.0,0.249]
[1674007108913,1.49141013,21235.0,21234.0,0.24]
[1674007109191,1.49141013,21235.0,21234.0,0.249]
[1674007109480,1.49141013,21235.0,21234.0,0.24]
[1674007109713,0.87049013,21235.0,21234.0,0.24]
[1674007110731,0.87049013,21235.0,21234.0,0.249]
[1674007111545,0.87049013,21235.0,21234.0,0.24]
[1674007111546,1.34141013,21235.0,21234.0,0.24]
[1674007111771,1.34141013,21235.0,21234.0,0.249]
[1674007112576,1.34141013,21235.0,21234.0,0.24]
[1674007112854,1.34141013,21235.0,21234.0,0.249]
[1674007114942,1.49141013,21235.0,21234.0,0.249]
[1674007116784,0.87049013,21235.0,21234.0,0.249]
[1674007117044,0.32387013,21235.0,21234.0,0.249]
[1674007117584,0.00239513,21235.0,21234.0,0.83252256]
[1674007117847,0.00239513,21235.0,21234.0,1.16805271]
[1674007118113,0.00239513,21235.0,21234.0,1.15905271]
[1674007118364,0.00239513,21235.0,21234.0,1.16805271]
[1674007118603,0.00239513,21235.0,21234.0,1.15905271]